Cogmind - Beta 14 @@@ ROGUE MODE // 2024.12.03 @ 19:37:50 Player: UnderDoug Result: Destroyed by XF-OR1(R) with Subdweller Laser Performance ------------- Evolutions (0) 0 Regions Visited (2) 400 Robots Destroyed (28) 140 Value Destroyed (854) 854 Prototype IDs (2) 40 Alien Tech Used (0) 0 Bonus (0) 0 TOTAL SCORE: 1434 Bonus ------- None Cogmind --------- Core Integrity 0/250 Matter 276/300 Energy 125/125 System Corruption 0% Temperature Cool (6) Movement Walking (120) Location -10/Subcaves Parts ------- > --- POWER (1) -------- Light Ion Engine > --- PROPULSION (2) --- Aluminum Leg Aluminum Leg > --- UTILITY (2) ------ Medium Storage Unit Seismic Detector > --- WEAPON (2) ------- Barrage Gun Mining Claw > --- INVENTORY (10) --- Ion Engine Light Treads Aluminum Leg Aluminum Leg Aluminum Leg Small Storage Unit Large Storage Unit Tractor Beam Cobbler Unit Peak State ------------ > --- POWER ------------ Light Nuclear Core > --- PROPULSION ------- Aluminum Leg Aluminum Leg > --- UTILITY ---------- Medium Storage Unit Seismic Detector > --- WEAPON ----------- Assault Rifle Light Assault Rifle > --- INVENTORY -------- Ion Engine Light Ion Engine Light Treads Light Treads Aluminum Leg Wheel Compact Wheel Small Storage Unit Large Storage Unit Small Laser [Rating: 10] Favorites ----------- Power Light Nuclear Core Engine Light Ion Engine Power Core Light Nuclear Core Propulsion Aluminum Leg Leg Aluminum Leg Utility Seismic Detector Device Seismic Detector Storage Medium Storage Unit Weapon Light Assault Rifle Energy Gun Small Laser Ballistic Gun Light Assault Rifle Launcher Grenade Launcher Slashing Weapon Mining Claw Build | -11 -10 -10 ------- Run | Yrd Mat Sub Slots Evolved . | . . . Power . | . . . Propulsion . | . . . Utility . | . . . Weapon . | . . . Parts Attached 23 | 8 9 6 Power 4 | 2 1 1 Engine 3 | 2 . 1 Core 1 | . 1 . Reactor . | . . . Propulsion 6 | 2 2 2 Treads . | . . . Leg 6 | 2 2 2 Wheel . | . . . Hover . | . . . Flight . | . . . Utility 4 | 2 2 . Device 2 | 1 1 . Storage 2 | 1 1 . Processor . | . . . Hackware . | . . . Protection . | . . . Artifact . | . . . Weapon 9 | 2 4 3 Energy Gun 1 | . 1 . Energy Cannon . | . . . Ballistic Gun 6 | 2 2 2 Ballistic Cannon . | . . . Launcher 1 | . 1 . Special Weapon . | . . . Impact Weapon . | . . . Slashing Weapon 1 | . . 1 Piercing Weapon . | . . . Special Melee Weapon . | . . . Unidentified Prototypes . | . . . Parts Lost 8 | . 3 5 Power 1 | . . 1 Propulsion 3 | . 2 1 Utility . | . . . Weapon 4 | . 1 3 Highest Loss Streak 2 | . 1 2 To Critical Strikes . | . . . Average Slot Usage (%) 97 | . 99 94 Engine 3 | . . 7 Core 9 | . 13 3 Leg 27 | . 27 27 Device 14 | . 14 14 Storage 14 | . 14 14 Ballistic Gun 18 | . 25 9 Launcher 5 | . 2 10 Slashing Weapon 2 | . . 7 Peak Build Rating 10 | 7 10 10 Average Rating 8 | 5 9 8 On Entrance 5 | . 7 10 Naked Turns . | . . . Heaviest Build 20 | 13 20 20 Greatest Support 20 | 20 20 20 Greatest Overweight (x) 1 | . 1 . Average Overweight (x) . | . . . Largest Inventory Capacity 10 | 8 10 10 Average Capacity 9 | 6 9 10 Most Carried 10 | 7 10 10 Average Carried 8 | 4 8 8 Final Capacity 10 | 8 10 10 Final Carried 10 | 6 10 10 Class Distribution -------------------- 80% | Mutant 19% | Scavenger-Mutant Dominant Class ---------------- Mutant | -10/Materials Mutant | -10/Subcaves Resources | -11 -10 -10 ----------- Run | Yrd Mat Sub Matter Collected 838 | 300 287 251 Remotely . | . . . Salvage Created 882 | 78 421 383 Parts 61 | 6 28 27 Haulers Intercepted . | . . . Recyclers Shooed . | . . . Parts Field Recycled . | . . . Retrieved Matter . | . . . Parts Self-Destructed 8 | . . 8 Prevented . | . . . Kills | -11 -10 -10 ------- Run | Yrd Mat Sub Combat Hostiles Destroyed 23 | . 11 12 Melee 1 | . . 1 Guns 10 | . 10 . AOE 12 | . 1 11 Classes Destroyed 8 | 2 4 2 Worker 1 | . 1 . Tunneler 1 | 1 . . Recycler 1 | 1 . . Watcher 2 | . 2 . Swarmer 3 | . 3 . Grunt 11 | . 8 3 Sentry 1 | . . 1 Subdweller 8 | . . 8 Best Kill Streak 4 | 2 3 4 Combat Bots Only 4 | . 2 4 Max Kills in Single Turn 2 | 1 1 2 Gunslinging . | . . . Exploded 2 | . 1 2 Melee 1 | . . 1 Uniques/NPCs Destroyed . | . . . Combat | -11 -10 -10 -------- Run | Yrd Mat Sub Hostile Shots Fired 105 | . 73 32 Missed 26 | . 20 6 Damage Taken 1154 | . 627 527 Core 271 | . 151 120 Absorbed by Shields . | . . . Core Remaining (%) 100 | 100 . . Volleys Fired 105 | 5 73 27 Largest 2 | 2 2 2 Hottest 60 | 40 60 50 Shots Fired 188 | 10 145 33 Gun 167 | 10 142 15 Cannon . | . . . Launcher 21 | . 3 18 Special . | . . . Kinetic 166 | 10 141 15 Thermal 1 | . 1 . Explosive 21 | . 3 18 Electromagnetic . | . . . Robot Hit Streak 14 | 3 14 10 Robot Miss Streak 6 | 1 6 1 Penetration Max . | . . . Secondary Targets 2 | . 2 . Max Gunslinging Chain 1 | . 1 . Shots Hit Robots 124 | 6 95 23 Core Hits 51 | 4 27 20 Critical Kills . | . . . Critical Parts Destroyed 2 | . 2 . Critical Strikes 2 | . 2 . Destroy 2 | . 2 . Melee Attacks 5 | . . 5 Impact . | . . . Slashing 5 | . . 5 Piercing . | . . . Sneak Attacks . | . . . Combat Hostiles . | . . . Follow-up Attacks . | . . . Damage Inflicted 2073 | 62 950 1061 Guns 980 | 62 824 94 Cannons . | . . . Explosions 1020 | . 126 894 Melee 73 | . . 73 Ramming . | . . . Kinetic 968 | 62 812 94 Thermal 12 | . 12 . Explosive 1020 | . 126 894 Electromagnetic . | . . . Impact . | . . . Slashing 73 | . . 73 Piercing . | . . . Highest Corruption . | . . . Average Corruption . | . . . Corruption Purged . | . . . Corruption Blocked . | . . . Overload Shots . | . . . Overflow Damage . | . . . Projectiles . | . . . Explosions . | . . . Melee . | . . . Knockbacks . | . . . Impact . | . . . Kinetic . | . . . Secondary . | . . . Self-Inflicted Damage 7 | . . 7 Shots 2 | . . 2 Rammed . | . . . Targets Rammed . | . . . Kicked . | . . . Crushed . | . . . Highest Temperature 47 | . 47 . Average Temperature 10 | . 10 . Received Heat Transfer 429 | . 294 135 Siege Activations . | . . . Robots Corrupted . | . . . Combat Hostiles . | . . . Parts Fried . | . . . Impact Corruptions . | . . . Robots Melted . | . . . Combat Hostiles . | . . . Parts Melted . | . . . Heat Transferred 25 | . 25 . Parts Sabotaged . | . . . Parts Stolen . | . . . Parts Stripped . | . . . Power Chain Reactions . | . . . Alert | -11 -10 -10 ------- Run | Yrd Mat Sub Peak Influence 213 | 10 213 . Initial 6 | . 6 . Average 59 | 3 63 . Maximum Alert Level 1 | . 1 . Low Security (%) 98 | 100 98 . Level 1 1 | . 1 . Level 2 . | . . . Level 3 . | . . . Level 4 . | . . . Level 5 . | . . . High Security . | . . . Max Security . | . . . Squads Dispatched 2 | . 2 . Investigation . | . . . Extermination . | . . . Reinforcement 2 | . 2 . Assault . | . . . Garrison . | . . . Intercept . | . . . Searches Triggered . | . . . Construction Impeded . | . . . Haulers Reinforced . | . . . Active Scanning Responses . | . . . Cargo Convoy Interrupts . | . . . Stealth | -11 -10 -10 --------- Run | Yrd Mat Sub Distress Signals . | . . . Communications Jammed . | . . . Distress Signals . | . . . Times Spotted 40 | . 28 12 Peak Tracking Total 5 | . 5 4 Tactical Retreats 4 | . 4 . Traps | -11 -10 -10 ------- Run | Yrd Mat Sub Traps Triggered 1 | . 1 . Indirectly . | . . . Trap Hack Attempts . | . . . Triggered . | . . . Disarmed . | . . . Reprogrammed . | . . . Reused . | . . . Traps Extracted . | . . . Installed . | . . . Triggered 3 | . . 3 Machines | -11 -10 -10 ---------- Run | Yrd Mat Sub Machines Disabled . | . . . Max in Single Turn . | . . . Machines Repaired . | . . . Machines Dismantled . | . . . Machines Sabotaged . | . . . Overloaded Fab Kills . | . . . Hacking | -11 -10 -10 --------- Run | Yrd Mat Sub Machines Accessed 8 | . 8 . Terminals 6 | . 6 . Fabricators . | . . . Repair Stations . | . . . Recycling Units 2 | . 2 . Scanalyzers . | . . . Garrison Access . | . . . Total Hacks 26 | . 26 . Successful 12 | . 12 . Failed 14 | . 14 . Catastrophic 3 | . 3 . Database Lockouts . | . . . Manual . | . . . Terminals 22 | . 22 . Fabricators . | . . . Repair Stations . | . . . Recycling Units 4 | . 4 . Scanalyzers . | . . . Garrison Access . | . . . Terminal Hacks 11 | . 11 . Robot Analysis 1 | . 1 . Prototype ID Bank 1 | . 1 . Emergency Access Points 1 | . 1 . Terminal Index 1 | . 1 . Alert Level 1 | . 1 . Unreport Threat 1 | . 1 . Locate Traps 2 | . 2 . Investigation Status 1 | . 1 . Registered Components 1 | . 1 . Zone Layout 1 | . 1 . Fabricator Hacks . | . . . Repair Station Hacks . | . . . Recycling Unit Hacks 1 | . 1 . Report Inventory 1 | . 1 . Scanalyzer . | . . . Garrison Access Hacks . | . . . Unauthorized Hacks . | . . . Terminals . | . . . Fabricators . | . . . Repair Stations . | . . . Recycling Units . | . . . Scanalyzers . | . . . Garrison Access . | . . . Data Cores Recovered . | . . . Used . | . . . Hacking Detections 7 | . 7 . Full Trace Events 3 | . 3 . Feedback Events . | . . . Feedback Blocked . | . . . Robot Schematics Acquired . | . . . Robots Built . | . . . Authchips . | . . . Time . | . . . Total Robot Build Rating . | . . . Part Schematics Acquired . | . . . Parts Built . | . . . Authchips . | . . . Time . | . . . Total Part Build Rating . | . . . Parts Repaired . | . . . Time . | . . . Parts Recycled . | . . . Recycled Matter . | . . . Retrieved Matter . | . . . Retrieved Components . | . . . Parts Scanalyzed . | . . . Part Schematics Acquired . | . . . Parts Damaged . | . . . Bothacking | -11 -10 -10 ------------ Run | Yrd Mat Sub Used RIF Installer . | . . . Robots Hacked . | . . . Non-combat . | . . . Combat . | . . . Robot Hacks Applied . | . . . Relay Couplers Released . | . . . Fabnet Peak Effective % . | . . . Robots Rewired . | . . . Allies Hacked . | . . . Hacks Repelled . | . . . Allies | -11 -10 -10 -------- Run | Yrd Mat Sub Total Allies . | . . . Largest Group . | . . . Highest-Rated Group . | . . . Highest-Rated Ally . | . . . Total Orders . | . . . Ally Attacks . | . . . Total Damage . | . . . Kills . | . . . Allies Corrupted . | . . . Allies Melted . | . . . Intel | -11 -10 -10 ------- Run | Yrd Mat Sub Robot Analysis Total 1 | . 1 . Derelict Logs Recovered 2 | . . 2 Drone Launches . | . . . Drone Recoveries . | . . . Exploration | -11 -10 -10 ------------- Run | Yrd Mat Sub Turns Passed 2108 | 91 1192 825 Spaces Moved 1410 | 50 760 600 Core 2 | 2 . . Treads . | . . . Legs 1408 | 48 760 600 Wheels . | . . . Hover . | . . . Flight . | . . . Fastest Speed 50 | 50 120 120 Average Speed 120 | 117 120 120 Slowest Speed 190 | 120 190 120 Overloaded Moves . | . . . Propulsion Burnouts . | . . . Robots Hopped . | . . . Cave-ins Triggered . | . . . Exploration Rate (%) 50 | 4 92 55 Regions Visited 2 Branch Regions 1 Pre-discovered Areas 1 | . . 1 Known Exits Taken . | . . . Unknown Exits Taken 2 | 1 1 . Scrap Searched . | . . . Spaces Dug 15 | . . 15 Terrain Destroyed 100 | . 6 94 Melee . | . . . Projectile . | . . . AOE 100 | . 6 94 Terrain Rammed . | . . . Walls Destroyed . | . . . Machines Disabled . | . . . Actions | -11 -10 -10 --------- Run | Yrd Mat Sub Total 1648 | 70 914 664 Wait 77 | . 57 20 Move 1408 | 49 759 600 Hop . | . . . Pick Up 22 | 7 10 5 Fast Attach 7 | 7 . . Attach 8 | . 3 5 Detach . | . . . Swap 8 | 1 6 1 Drop 8 | 1 6 1 Fire 105 | 5 73 27 Melee 5 | . . 5 Ram . | . . . Kick . | . . . Crush . | . . . Escape Stasis . | . . . Rewire . | . . . Trap . | . . . Miscellaneous . | . . . Route ------- -11/Scrapyard -10/Materials (discovered 5 exits: [*Mat x3] / [*Min] / [*Sub]) -10/Subcaves (discovered 1 exit: [*Mat]) History --------- Turn | Location | Event 10 | -11/Scrapyard | Discovered new exit (range 15) 92 | -11/Scrapyard | Entered Materials 223 | -10/Materials | Discovered new exit (range 3) 311 | -10/Materials | Build established: Mutant 576 | -10/Materials | Discovered new exit (range 16) 621 | -10/Materials | Discovered new exit (range 14) 752 | -10/Materials | Discovered new exit (range 16) 1028 | -10/Materials | Core integrity fell below 50% 1078 | -10/Materials | Discovered new exit (range 10) 1284 | -10/Materials | Entered Subcaves 1299 | -10/Subcaves | Discovered new exit (range 6) 1349 | -10/Subcaves | Build established: Scavenger-Mutant 1378 | -10/Subcaves | A swath of the cavern ceiling suddenly collapsed 1384 | -10/Subcaves | Learned 2 Materials zone layouts 1764 | -10/Subcaves | Build established: Mutant 1903 | -10/Subcaves | Core integrity fell below 20% 2109 | -10/Subcaves | Destroyed by XF-OR1(R) with Subdweller Laser Last Messages --------------- Acquired Piercing Trap. Dropped Piercing Trap. Y-45 Defender destroyed. G-34 Mercenary destroyed. Acquired 26 matter. The unstable cave ceiling collapses. G-34 Mercenary destroyed. Grenade Launcher destroyed. The unstable cave ceiling collapses. Lgt. Treads fries itself beyond repair. The unstable cave ceiling collapses. G-47 Trooper destroyed. Acquired 50 matter. Acquired Aluminum Leg. Acquired 27 matter. Acquired 15 matter. Acquired 11 matter. Acquired 8 matter. Acquired 4 matter. Acquired Cobbler Unit. Map ----- +----------------------------------------------------+ | ?????????????????????##### ## #???????????### #?? | | ?????????????????????????####?##?????????????###?? | | ?????????????????????????????????????????????????? | | ?????????????????????????????????????????????????? | | ?????????????????????????????????????????????????? | | ?????????????????????????????????????????????????? | | ?????????????????????????????????????????????????? | | ?????????????????????????????????????????????????? | | ?????????????????????????????????????????????????? | | ?????????????????????????????????????????????????? | | ?????????#???????????????????????????????????????? | | ???##??? ##??????????????????????????????????????? | | ??? #?## #??????????????????????????????????????? | | ### ## ##??????#########???????????????????????? | | #%# ### ####??# ## #???????????????????????? | | # ##?# #???????????????????????? | | ##???# #?# #???????????????????????? | | #???# ### ##????????? ???????????? | | ##?## ## ###????????? ????????????? | | ### ####??????? #????????????? | | ### ##?????" #????????????? | | ## #???? ##???????????? | | ##???# ## ?????????? | | #???# ?????????? | | ##?# ????????? | | ## ### ## @## ?????????? | | ## #?### #R #????????????? | | ## ### ## ##???????????? | | ### #???????????? | | %& ###?## # #??????????? | | ###### ### ### #??????????? | | # ## #??##?#### ????????? | | ## ## ????????## ????????? | | ?# ### ### #????????# ?????????? | | ## #??##?# #???????? #?????????? | | ##????# ?#???????? #?????????? | | #?????# #????????? ??????????? | | ####????##???????? ??????????? | | #?????????????? ## ##???????????? | | ### #?????????????? ##?##????????????? | | ??## #?????????????? ##????????????????? | | #### #?????????????## ####?????????????????? | | ## #??????????????## ##????????????????????? | | ##????????????????##??????????????????????? | | #?????????????????????????????????????????? | | ##### #????????????????????????????????????????? | | ????#####????????????????????????????????????????? | | ?????????????????????????????????????????????????? | | ?????????????????????????????????????????????????? | | ?????????????????????????????????????????????????? | +----------------------------------------------------+ Best States ------------- Heat Dissipation 25 Energy Generation 14 Energy Capacity 250 Matter Stores 300 Matter Capacity 300 Sight Range 16 Terrain Scan Density 10 Evasion (%) 55 Item Schematics ----------------- None Robot Schematics ------------------ None Fabricated ------------ Nothing Alien Tech Used ----------------- None Achievements -------------- None Challenges ------------ None Game ------ Seed AnalysisMachineAnalyzer Manual? 0 Play Time 00:18:07 Cumulative 14.9 hours Start 2024.12.03 @ 19:21:36 End 2024.12.03 @ 19:37:50 Sessions 1 Manual Loads 0 Difficulty Rogue Special Mode None Game No. 23 Rogue 23 Adventurer 0 Explorer 0 Win Type - Total 0 Types 0/0/0/0/0/0/0/0/0 Lore% 7 Gallery% 18 Achievement% 17 Wizard Run 0 Options --------- Layout 1 ASCII 0 Keyboard 0 Movement Mouse Keybinds 0 Fullscreen 2 Font 24/Tamsyn Map View 50x35 Zoom Use 0% Tactical HUD 0 Map Filters NONE Filters NONE Steam 0 RUN: 3c509deb-10ab-4cc4-8820-45f3f5c78193